[Event "2017 South African Open Ch"]
[Site "Durban"]
[Date "2017.07.19"]
[Round "8"]
[White "Mazibuko, Khanya"]
[Black "Zwakala, Ntando"]
[Result "0-1"]
[ECO "B23"]
[WhiteElo "1808"]
[BlackElo "2020"]
[Annotator "NA"]
[PlyCount "84"]
[EventDate "2017.??.??"]
[EventCountry "RSA"]
[SourceTitle "playchess.com"]
[Source "ChessBase"]
[SourceQuality "1"]
[TimeControl "5400+30"]

1. e4 {[%emt 0:00:00]} c5 {[%emt 0:00:09]} 2. Nc3 {[%emt 0:00:00]} e6 {[%emt 0:00:07]} 3. f4 {[%emt 0:00:01]} a6 {[%emt 0:00:38]} 4. g3 {[%emt 0:00:33]} d5 {[%emt 0:00:25]} 5. e5 {[%emt 0:01:05]} Nc6 {[%emt 0:00:55]} 6. Nf3 {[%emt 0:01:19]} h5 {[%emt 0:02:24]} 7. d3 {[%emt 0:01:22]} Nh6 {[%emt 0:00:47]} 8. Bg2 {[%emt 0:02:08]} Be7 {[%emt 0:00:18]} 9. O-O {[%emt 0:03:47]} h4 {[%emt 0:06:21]} 10. Ne2 {[%emt 0:04:15]} hxg3 {[%emt 0:01:23]} 11. Nxg3 {[%emt 0:02:12]} g6 {[%emt 0:00:59]} 12. c4 {[%emt 0:00:56]} Nf5 {[%emt 0:02:37]} 13. Nxf5 {[%emt 0:05:59]} gxf5 {[%emt 0:03:14]} 14. cxd5 {[%emt 0:01:33]} Qxd5 {[%emt 0:06:04]} 15. Be3 {[%emt 0:03:26]} Qd8 {[%emt 0:04:07]} 16. Rc1 {[%emt 0:06:15]} Qa5 {[%emt 0:01:47]} 17. d4 {[%emt 0:07:02]} Qxa2 {[%emt 0:06:56]} 18. Rf2 {[%emt 0:16:45]} Qa5 {[%emt 0:05:49]} 19. dxc5 {[%emt 0:06:17]} Bd7 {[%emt 0:03:19]} 20. Nd4 {[%emt 0:07:02]} O-O-O {[%emt 0:04:34]} 21. b4 {[%emt 0:13:48]} Qa3 {[%emt 0:28:59]} 22. Nc2 {[%emt 0:04:54]} Qc3 {[%emt 0:03:51]} 23. Qe2 {[%emt 0:01:38]} Qb3 {[%emt 0:08:42]} 24. Qf1 {[%emt 0:01:53]} Be8 {[%emt 0:01:12]} 25. Rd2 {[%emt 0:01:58]} Rxd2 {[%emt 0:00:49]} 26. Bxd2 {[%emt 0:00:01]} Rg8 {[%emt 0:00:36]} 27. Ne3 {[%emt 0:00:18]} Nd4 {[%emt 0:02:48]} 28. Kh1 {[%emt 0:02:04]} Bc6 {[%emt 0:01:25]} 29. Bxc6 {[%emt 0:00:30]} Nxc6 {[%emt 0:00:01]} 30. Rb1 {[%emt 0:01:20]} Qa2 {[%emt 0:00:33]} 31. Nc4 {[%emt 0:01:56]} Qc2 {[%emt 0:00:49]} 32. Re1 {[%emt 0:02:01]} Rd8 {[%emt 0:01:13]} 33. Be3 {[%emt 0:00:58]} Qe4+ {[%emt 0:00:14]} 34. Kg1 {[%emt 0:00:47]} Rg8+ {[%emt 0:00:09]} 35. Kf2 {[%emt 0:00:01]} Nxb4 {[%emt 0:01:26]} 36. Nd6+ {[%emt 0:01:23]} Bxd6 {[%emt 0:00:12]} 37. cxd6 {[%emt 0:00:18]} Nd3+ {[%emt 0:00:21]} 38. Ke2 {[%emt 0:00:26]} Nxe1 {[%emt 0:00:26]} 39. Qxe1 {[%emt 0:00:27]} Qc2+ {[%emt 0:01:19]} 40. Bd2 {[%emt 0:00:24]} Rg2+ {[%emt 0:00:38]} 41. Kf3 {[%emt 0:00:57]} Qc6+ {[%emt 0:00:35]} 42. Ke3 {[%emt 0:00:15]} Qe4# {[%emt 0:00:06] Kd4} 0-1

[Event "2017 South African Open Ch"]
[Site "Durban"]
[Date "2017.07.19"]
[Round "8"]
[White "Masiya, Mfundo"]
[Black "Skosana, Stephen K"]
[Result "0-1"]
[ECO "C41"]
[WhiteElo "1806"]
[BlackElo "2027"]
[Annotator "NA"]
[PlyCount "90"]
[EventDate "2017.??.??"]
[EventCountry "RSA"]
[SourceTitle "playchess.com"]
[Source "ChessBase"]
[SourceQuality "1"]
[TimeControl "5400+30"]

1. e4 {[%emt 0:00:00]} d6 {[%emt 0:00:55]} 2. d4 {[%emt 0:00:33]} e5 {[%emt 0:00:48]} 3. Nf3 {[%emt 0:01:28]} exd4 {[%emt 0:01:33]} 4. Nxd4 {[%emt 0:00:37]} Nf6 {[%emt 0:00:19]} 5. Nc3 {[%emt 0:00:10]} Be7 {[%emt 0:00:06]} 6. Bf4 {[%emt 0:00:11]} O-O {[%emt 0:01:04]} 7. Qd2 {[%emt 0:00:21]} c6 {[%emt 0:00:36]} 8. f3 {[%emt 0:00:17]} Qc7 {[%emt 0:02:20]} 9. g4 {[%emt 0:01:00]} b5 {[%emt 0:06:28]} 10. a3 {[%emt 0:00:19]} Rd8 {[%emt 0:00:32]} 11. h4 {[%emt 0:01:16]} a5 {[%emt 0:02:32]} 12. h5 {[%emt 0:00:56]} Nfd7 {[%emt 0:05:06]} 13. Nf5 {[%emt 0:05:33]} Ne5 {[%emt 0:00:15]} 14. Nxe7+ {[%emt 0:03:41]} Qxe7 {[%emt 0:06:15]} 15. Be2 {[%emt 0:00:46]} Ba6 {[%emt 0:11:44]} 16. Kf2 {[%emt 0:08:29]} Nbd7 {[%emt 0:05:41]} 17. Rag1 {[%emt 0:01:01]} b4 {[%emt 0:04:32]} 18. axb4 {[%emt 0:01:12]} axb4 {[%emt 0:04:13]} 19. Nd1 {[%emt 0:00:10]} Bxe2 {[%emt 0:00:13]} 20. Qxe2 {[%emt 0:00:15]} Nc5 {[%emt 0:00:28]} 21. g5 {[%emt 0:14:22]} b3 {[%emt 0:04:19]} 22. Kg3 {[%emt 0:18:44]} bxc2 {[%emt 0:09:21]} 23. Qxc2 {[%emt 0:01:10]} Ncd3 {[%emt 0:01:47]} 24. Be3 {[%emt 0:00:41]} d5 {[%emt 0:05:49]} 25. f4 {[%emt 0:01:40]} d4 {[%emt 0:00:35]} 26. Bd2 {[%emt 0:00:50]} Qc5 {[%emt 0:05:50]} 27. Qb1 {[%emt 0:02:28]} Re8 {[%emt 0:05:02]} 28. Rh4 {[%emt 0:05:15]} Qb5 {[%emt 0:06:06]} 29. fxe5 {[%emt 0:00:27]} Qxe5+ {[%emt 0:00:28]} 30. Kg2 {[%emt 0:02:14]} Qb5 {[%emt 0:03:01]} 31. Kh1 {[%emt 0:04:28]} ({Better is} 31. h6 $16) 31... Ne5 $11 {[%emt 0:00:16]} 32. Rh3 {[%emt 0:18:34]} Qe2 {[%emt 0:00:55]} 33. Rg2 {[%emt 0:00:14]} Qf1+ {[%emt 0:00:09]} 34. Kh2 {[%emt 0:00:05]} Nf3+ {[%emt 0:01:53]} 35. Kg3 {[%emt 0:01:15]} Nxd2 {[%emt 0:00:07]} 36. Rxd2 {[%emt 0:00:22]} Qe1+ {[%emt 0:00:30]} 37. Rf2 {[%emt 0:01:15]} Rxe4 {[%emt 0:01:04]} 38. Qd3 {[%emt 0:00:58]} Re3+ {[%emt 0:00:52]} 39. Nxe3 {[%emt 0:00:29]} dxe3 {[%emt 0:01:28]} 40. Rhh2 {[%emt 0:01:54]} exf2 {[%emt 0:00:42]} 41. Rxf2 {[%emt 0:00:04]} Qe5+ {[%emt 0:00:32]} 42. Kh4 {[%emt 0:01:40]} Ra4+ {[%emt 0:00:33]} 43. Kh3 {[%emt 0:00:10]} Qxg5 {[%emt 0:00:10]} 44. Qg3 {[%emt 0:01:42]} Qxh5+ {[%emt 0:00:17]} 45. Kg2 {[%emt 0:00:05]} Rg4 {[%emt 0:00:15]} 0-1

[Event "2017 South African Open Ch"]
[Site "Durban"]
[Date "2017.07.20"]
[Round "9"]
[White "Jere, Daniel"]
[Black "Mwali, Chitumbo"]
[Result "1/2-1/2"]
[ECO "A15"]
[WhiteElo "2380"]
[BlackElo "2356"]
[Annotator "NA"]
[PlyCount "81"]
[EventDate "2017.??.??"]
[EventCountry "RSA"]
[SourceTitle "playchess.com"]
[Source "ChessBase"]
[SourceQuality "1"]
[TimeControl "5400+30"]

{[%evp 13,78,4,7,32767,18,6,54,62,32767,32767,43,32767,32767,32767,32767,32767,32767,0,32767,32767,20,11,25,0,3,0,7,32767,32767,13,32767,32767,32767,32767,32767,32767,32767,33,75,41,45,22,41,42,43,16,27,13,18,20,24,22,34,12,30,0,15,0,0,0,0,0,0,0,7,0,8]} 1. c4 Nf6 {[%emt 0:00:33]} 2. Nf3 {[%emt 0:00:46]} c6 {[%emt 0:01:11]} 3. g3 {[%emt 0:00:13]} d5 {[%emt 0:00:25]} 4. Bg2 {[%emt 0:00:06]} Bf5 {[%emt 0:00:31]} 5. Qb3 {[%emt 0:03:13]} Qb6 {[%emt 0:00:57]} 6. cxd5 {[%emt 0:01:49] A11: English Opening: 1...c6} (6. d3 e6 7. O-O Be7 8. Qc2 O-O 9. cxd5 cxd5 10. Be3 Qa6 11. Rc1 Ng4 12. Bf4 Nc6 13. h3 Nf6 14. Ne5 Nxe5 15. Bxe5 {½-½ (47) Eljanov,P (2757)-Malakhov,V (2698) Novi Sad 2016}) 6... Qxb3 {[%emt 0:00:47]} 7. axb3 {[%emt 0:00:05]} Nxd5 {[%emt 0:00:27] LiveBook: 4 Games} 8. d3 {[%emt 0:00:38]} Nb4 {[%emt 0:03:56]} 9. Na3 {[%emt 0:00:45]} Nd7 {[%emt 0:00:25]} 10. Bd2 $146 {[%emt 0:00:31]} ({Predecessor:} 10. O-O e6 11. Bd2 Bg4 12. Nc4 Nd5 13. Rfc1 f6 {0-1 (40) Andersen,M (2467)-Hasenohr,B (2317) Biel 2015}) 10... e5 {[%emt 0:05:08]} 11. O-O {[%emt 0:00:07]} f6 {[%emt 0:03:07]} 12. d4 {[%emt 0:15:34]} e4 {[%emt 0:13:00]} 13. Nh4 {[%emt 0:06:42]} Be6 {[%emt 0:00:06]} 14. Bxe4 {[%emt 0:00:07]} Bxb3 {[%emt 0:00:03]} 15. Nf5 {[%emt 0:07:27]} g6 {[%emt 0:01:17]} 16. Ne3 {[%emt 0:00:25]} f5 {[%emt 0:08:16]} 17. Bb1 {[%emt 0:03:55]} Nb6 {[%emt 0:03:05]} 18. Nac2 {[%emt 0:04:13]} Nxc2 {[%emt 0:10:33]} 19. Bxc2 {[%emt 0:00:24]} Be6 {[%emt 0:18:29]} 20. Ng2 {[%emt 0:04:52]} Bg7 {[%emt 0:01:15]} 21. Nf4 {[%emt 0:01:12]} Bf7 {[%emt 0:00:02]} 22. e3 {[%emt 0:00:12]} a6 {[%emt 0:00:29]} 23. Nd3 {[%emt 0:01:54]} Nc4 {[%emt 0:00:44]} 24. Bb4 {[%emt 0:01:31]} O-O-O {[%emt 0:00:28]} 25. Rfc1 {[%emt 0:04:03]} Nd6 {[%emt 0:04:30]} 26. Nc5 {[%emt 0:01:41]} Bd5 {[%emt 0:02:19]} 27. Bd3 {[%emt 0:01:25]} Ne4 {[%emt 0:02:49]} 28. Na4 {[%emt 0:02:59]} Kb8 {[%emt 0:02:20]} 29. Nb6 {[%emt 0:01:21]} Bf7 {[%emt 0:00:18]} 30. Bxe4 {[%emt 0:06:24]} fxe4 {[%emt 0:00:08]} 31. Be7 {[%emt 0:01:03]} Rde8 {[%emt 0:00:34]} 32. Bd6+ {[%emt 0:01:21]} Ka7 {[%emt 0:00:08]} 33. Bc5 {[%emt 0:01:43]} Kb8 {[%emt 0:03:01]} 34. Bd6+ {[%emt 0:11:54]} Ka7 {[%emt 0:00:05]} 35. Nd7 {[%emt 0:00:39]} Rd8 {[%emt 0:02:26]} 36. Bc5+ {[%emt 0:00:32]} Ka8 {[%emt 0:00:03]} 37. Nb6+ {[%emt 0:00:57]} Kb8 {[%emt 0:00:27]} 38. Be7 {[%emt 0:01:13]} Rde8 {[%emt 0:00:12]} 39. Bd6+ $11 {[%emt 0:07:32]} Ka7 {[%emt 0:00:02]} 40. Bc5 {[%emt 0:01:29]} Kb8 {[%emt 0:00:16]} 41. Be7 1/2-1/2

[Event "2017 South African Open Ch"]
[Site "Durban"]
[Date "2017.07.20"]
[Round "9"]
[White "Oatlhotse, Providence"]
[Black "Masango, Spencer"]
[Result "0-1"]
[ECO "D37"]
[WhiteElo "2190"]
[BlackElo "2203"]
[Annotator "NA"]
[PlyCount "142"]
[EventDate "2017.??.??"]
[EventCountry "RSA"]
[SourceTitle "playchess.com"]
[Source "ChessBase"]
[SourceQuality "1"]
[TimeControl "5400+30"]

1. d4 {[%emt 0:00:00]} Nf6 {[%emt 0:05:25]} 2. c4 {[%emt 0:00:00]} e6 {[%emt 0:00:11]} 3. Nf3 {[%emt 0:00:00]} d5 {[%emt 0:00:14]} 4. Nc3 {[%emt 0:00:56]} Be7 {[%emt 0:00:11]} 5. Bg5 {[%emt 0:00:41]} Ne4 {[%emt 0:03:19]} 6. Bxe7 {[%emt 0:01:14]} Qxe7 {[%emt 0:00:08]} 7. e3 {[%emt 0:02:03]} Nxc3 {[%emt 0:01:01]} 8. bxc3 {[%emt 0:00:03]} O-O {[%emt 0:00:22]} 9. cxd5 {[%emt 0:04:56]} exd5 {[%emt 0:00:15]} 10. Qb3 {[%emt 0:00:02] LiveBook: 15 Games} c6 {[%emt 0:00:52]} 11. Bd3 {[%emt 0:03:02] D55: Queen's Gambit Declined: 4 Bg5 Be7: Lines without ...h6 and 6...h6 7 Bxf6} (11. Be2 Be6 12. O-O Rc8 13. Rfc1 Rc7 14. c4 Qd8 15. cxd5 Bxd5 16. Qc2 Be6 17. h3 Nd7 18. e4 Rac8 {1-0 (36) Kacheishvili,G (2603)-Lein,A (2420) Las Vegas 2003}) 11... a5 $146 {[%emt 0:03:57]} 12. a4 {[%emt 0:00:51]} Nd7 {[%emt 0:01:39]} 13. O-O {[%emt 0:00:50]} b6 {[%emt 0:00:19]} 14. Rfb1 {[%emt 0:07:56]} Rb8 {[%emt 0:13:43]} 15. Ra2 {[%emt 0:10:21]} Bb7 {[%emt 0:02:53]} 16. Rab2 {[%emt 0:19:15]} g6 {[%emt 0:04:01]} 17. Qc2 {[%emt 0:06:38]} Ba8 {[%emt 0:04:52]} 18. Re1 {[%emt 0:07:28]} Qd6 {[%emt 0:04:46]} 19. Nd2 {[%emt 0:03:46]} c5 {[%emt 0:01:17]} 20. Bb5 {[%emt 0:02:27]} cxd4 {[%emt 0:00:56]} 21. cxd4 {[%emt 0:00:54]} Rbc8 {[%emt 0:00:25]} 22. Qb1 {[%emt 0:04:21]} Bc6 {[%emt 0:01:12]} 23. Qa2 {[%emt 0:00:31]} Bxb5 {[%emt 0:00:33]} 24. Rxb5 {[%emt 0:00:08]} Nf6 {[%emt 0:00:07]} 25. Nf3 {[%emt 0:12:31]} Ne4 {[%emt 0:08:05]} 26. Qb3 {[%emt 0:06:00]} ({Reject} 26. Rxd5 Qe6 $17) 26... Rc3 {[%emt 0:01:10]} 27. Qb2 {[%emt 0:01:40]} Qa3 {[%emt 0:01:43]} 28. Rxb6 {[%emt 0:01:43]} Qxa4 {[%emt 0:01:05]} 29. Rb8 {[%emt 0:00:25]} Rc2 {[%emt 0:04:22]} 30. Rxf8+ {[%emt 0:00:30]} Kxf8 {[%emt 0:00:08]} 31. Qb8+ {[%emt 0:00:05]} Qe8 {[%emt 0:00:09]} 32. Qb7 {[%emt 0:02:22]} a4 {[%emt 0:01:41]} 33. Qxd5 {[%emt 0:00:31]} Nc3 {[%emt 0:05:36]} 34. Qb7 {[%emt 0:00:39]} Qb5 {[%emt 0:01:16]} 35. Qa8+ {[%emt 0:00:15]} Kg7 {[%emt 0:00:09]} 36. h4 {[%emt 0:00:18]} Ne2+ {[%emt 0:04:03]} 37. Kh2 {[%emt 0:00:24]} Nc1 {[%emt 0:01:38]} 38. Ne5 {[%emt 0:01:25]} Nb3 {[%emt 0:00:03]} (38... h5 $11) 39. Qa7 {[%emt 0:01:03]} (39. Kg1 $16) 39... Rxf2 {[%emt 0:00:42]} 40. Qe7 {[%emt 0:00:37]} (40. h5 $11 gxh5 41. Qe7) 40... Qd5 {[%emt 0:01:00]} 41. e4 {[%emt 0:01:02]} Qe6 {[%emt 0:02:23]} 42. Qxe6 {[%emt 0:00:07]} fxe6 {[%emt 0:00:08]} 43. Re3 {[%emt 0:00:52]} Nxd4 $15 {[%emt 0:01:19]} 44. Ra3 {[%emt 0:00:13]} Rf4 {[%emt 0:03:08]} 45. Rxa4 {[%emt 0:00:03]} Rxe4 {[%emt 0:00:25]} 46. Ra7+ {[%emt 0:00:12]} Kf6 {[%emt 0:02:13]} 47. Nd7+ {[%emt 0:00:20]} Kf5 {[%emt 0:00:08]} 48. g3 {[%emt 0:01:43]} Re2+ {[%emt 0:00:25]} 49. Kh3 {[%emt 0:00:29]} h5 {[%emt 0:00:20]} 50. Ra3 {[%emt 0:00:34]} Rf2 {[%emt 0:01:20]} 51. Ra5+ {[%emt 0:00:29]} Ke4 {[%emt 0:02:56]} 52. Re5+ {[%emt 0:00:03]} Kd3 {[%emt 0:00:25]} 53. Rg5 {[%emt 0:00:44]} Nf3 {[%emt 0:01:07]} 54. Ne5+ {[%emt 0:00:04]} Nxe5 {[%emt 0:00:08]} 55. Rxe5 {[%emt 0:00:01]} Rf6 {[%emt 0:00:09]} 56. g4 {[%emt 0:01:35]} Kd4 {[%emt 0:01:54]} 57. Re1 {[%emt 0:00:01]} Rf3+ {[%emt 0:03:24]} 58. Kg2 {[%emt 0:00:06]} Re3 {[%emt 0:00:21]} 59. Rd1+ {[%emt 0:00:19]} Rd3 {[%emt 0:00:54]} 60. Re1 {[%emt 0:00:04]} e5 {[%emt 0:00:16]} 61. Ra1 {[%emt 0:01:15]} hxg4 {[%emt 0:01:48]} 62. Ra4+ {[%emt 0:00:04]} Ke3 {[%emt 0:00:20]} 63. Rxg4 {[%emt 0:00:05]} Rd6 {[%emt 0:00:08]} 64. Kg3 {[%emt 0:01:31]} e4 {[%emt 0:00:26]} 65. Rg5 {[%emt 0:00:22]} Kd3 {[%emt 0:00:59]} 66. Kf4 {[%emt 0:01:02]} e3 {[%emt 0:00:10]} 67. Rg3 {[%emt 0:00:40]} Re6 {[%emt 0:00:10]} 68. Rh3 {[%emt 0:00:37]} Kd2 {[%emt 0:00:13]} 69. h5 {[%emt 0:00:26]} gxh5 {[%emt 0:00:10]} 70. Rxh5 {[%emt 0:00:07]} e2 {[%emt 0:00:05]} 71. Rd5+ {[%emt 0:00:34]} Kc3 {[%emt 0:00:09]} 0-1

[Event "2017 South African Open Ch"]
[Site "Durban"]
[Date "2017.07.20"]
[Round "9"]
[White "Bhawoodien, Mohamed Ozayr"]
[Black "Mnguni, Jacob Dumisani"]
[Result "1/2-1/2"]
[ECO "D12"]
[WhiteElo "2103"]
[BlackElo "2147"]
[Annotator "NA"]
[PlyCount "35"]
[EventDate "2017.??.??"]
[EventCountry "RSA"]
[SourceTitle "playchess.com"]
[Source "ChessBase"]
[SourceQuality "1"]
[TimeControl "5400+30"]

{[%evp 12,29,59,32767,64,32767,32767,32767,66,32767,70,59,56,38,32767,63,72,27,28,19]} 1. d4 {[%emt 0:05:14]} d5 {[%emt 0:04:09]} 2. c4 {[%emt 0:00:09]} c6 {[%emt 0:00:04]} 3. Nf3 {[%emt 0:00:03]} Nf6 {[%emt 0:00:29]} 4. e3 {[%emt 0:00:06]} Bf5 {[%emt 0:02:20]} 5. cxd5 {[%emt 0:00:33]} cxd5 {[%emt 0:01:09]} 6. Qb3 {[%emt 0:00:33]} Qb6 {[%emt 0:03:32] LiveBook: 67 Games} (6... Qc7 $5 {[%cal Rc7c1]} 7. Nc3 e6 $11) 7. Qxb6 {[%emt 0:00:52]} axb6 {[%emt 0:01:07]} 8. Nc3 {[%emt 0:01:35]} Nc6 {[%emt 0:00:26]} 9. Bb5 {[%emt 0:00:13]} Bd7 {[%emt 0:09:00]} 10. Bd2 {[%emt 0:06:31]} Ra5 {[%emt 0:08:23]} 11. O-O {[%emt 0:11:44]} e6 {[%emt 0:02:20]} 12. a3 {[%emt 0:04:09]} Be7 {[%emt 0:06:20]} 13. Bd3 {[%emt 0:17:34]} Ra8 {[%emt 0:00:06]} 14. b4 {[%emt 0:14:28]} O-O {[%emt 0:00:22]} 15. Rfc1 $11 {[%emt 0:06:16]} Rfd8 {[%emt 0:09:40]} 16. h3 {[%emt 0:00:46]} Be8 {[%emt 0:00:18]} 17. Be1 {[%emt 0:05:21]} Rdc8 {[%emt 0:03:16]} 18. Kf1 {[%emt 0:03:15]} 1/2-1/2

[Event "2017 South African Open Ch"]
[Site "Durban"]
[Date "2017.07.20"]
[Round "9"]
[White "Govindasamy, Nashlen"]
[Black "Jacobs, Kevin T"]
[Result "0-1"]
[ECO "A14"]
[WhiteElo "2087"]
[BlackElo "1882"]
[Annotator "NA"]
[PlyCount "120"]
[EventDate "2017.??.??"]
[EventCountry "RSA"]
[SourceTitle "playchess.com"]
[Source "ChessBase"]
[SourceQuality "1"]
[TimeControl "5400+30"]

1. Nf3 {[%emt 0:04:41]} d5 {[%emt 0:00:39]} 2. c4 {[%emt 0:00:32]} e6 {[%emt 0:00:27]} 3. g3 {[%emt 0:00:16]} Nf6 {[%emt 0:00:39]} 4. Bg2 {[%emt 0:00:11]} Be7 {[%emt 0:00:25]} 5. O-O {[%emt 0:00:08]} O-O {[%emt 0:00:43]} 6. b3 {[%emt 0:01:46]} c5 {[%emt 0:01:34]} 7. Bb2 {[%emt 0:00:25]} Nc6 {[%emt 0:02:18]} 8. e3 {[%emt 0:01:14]} b6 {[%emt 0:04:47]} 9. Nc3 {[%emt 0:01:49]} Bb7 {[%emt 0:05:40]} 10. d3 {[%emt 0:15:23]} Rc8 {[%emt 0:03:37]} 11. Qe2 {[%emt 0:00:47] LiveBook: 30 Games A14: English Opening: 1...e6 with b3 by White} Bd6 {[%emt 0:00:25]} (11... Qd7 12. Rfd1 Rfd8 13. d4 cxd4 14. Nxd4 Nxd4 15. Rxd4 Bc5 16. Rdd1 Qe7 17. cxd5 exd5 18. Rac1 Ne4 {1-0 (80) Macieja,B (2608)-Kanarek,M (2482) Chorzow 2013}) 12. Rfd1 {[%emt 0:00:54]} Qe7 {[%emt 0:00:08]} 13. Rac1 {[%emt 0:07:50]} Rfd8 {[%emt 0:01:46]} (13... d4 $5 {[%cal Rd4c3]} 14. Nb5 dxe3 $11) 14. cxd5 {[%emt 0:01:10]} exd5 {[%emt 0:06:25]} 15. d4 $146 {[%emt 0:01:17]} ({Predecessor:} 15. Bh3 Ra8 16. Nb5 d4 17. Nxd6 Rxd6 18. e4 Rdd8 19. a3 {½-½ (47) Sunye Neto,J (2470)-Blees,A (2225) Dieren 1984}) 15... Nb4 {[%emt 0:08:50]} 16. Bh3 {[%emt 0:22:48]} Ra8 {[%emt 0:04:41]} 17. a3 {[%emt 0:02:14]} Ba6 {[%emt 0:04:05]} 18. Nb5 {[%emt 0:00:36]} Qe8 {[%emt 0:00:32] [#]} 19. a4 $2 {[%emt 0:03:37]} (19. Bf1 $1 $18) 19... Ne4 {[%emt 0:04:21]} 20. Ba1 {[%emt 0:08:03]} Bxb5 {[%emt 0:06:24]} 21. axb5 {[%emt 0:00:14]} a6 {[%emt 0:00:07]} 22. dxc5 {[%emt 0:00:50]} Bxc5 {[%emt 0:00:41]} 23. Nd4 {[%emt 0:06:24]} (23. Nd2 $11) 23... axb5 {[%emt 0:03:06]} 24. Nf5 {[%emt 0:15:27]} ({Not} 24. Qxb5 $2 Qxb5 25. Nxb5 Ra2 $19) ({Avoid the trap} 24. Nxb5 $2 Ra2 $19) (24. Bf1 $15) 24... f6 {[%emt 0:10:42]} 25. Bb2 {[%emt 0:01:13]} Ra2 {[%emt 0:08:32]} 26. Ra1 {[%emt 0:00:39]} g6 {[%emt 0:02:54]} 27. Rxa2 {[%emt 0:00:40]} (27. Nd4 $11) 27... Nxa2 {[%emt 0:01:04]} 28. Ra1 $1 {[%emt 0:02:07]} Nac3 {[%emt 0:01:07]} 29. Bxc3 {[%emt 0:00:12]} (29. Nh6+ $1 $11 {was the only way to keep the balance.} Kg7 30. Qg4) 29... Nxc3 {[%emt 0:00:07]} 30. Qg4 {[%emt 0:00:49] [#]} (30. Qd3 $142 gxf5 31. Qxc3) 30... Qe4 $1 {[%emt 0:01:13]} 31. Nd4 {[%emt 0:00:40]} Bxd4 $1 {[%emt 0:01:28]} 32. Qe6+ {[%emt 0:00:27]} Qxe6 {[%emt 0:00:13]} 33. Bxe6+ {[%emt 0:00:02]} Kg7 {[%emt 0:00:22]} 34. Ra7+ $19 {[%emt 0:00:35]} Kh6 {[%emt 0:00:58]} 35. exd4 {[%emt 0:00:07]} Ne2+ {[%emt 0:00:06]} 36. Kf1 {[%emt 0:00:59]} Nxd4 {[%emt 0:00:14]} 37. Bd7 {[%emt 0:00:22]} Nxb3 {[%emt 0:01:18]} 38. Bxb5 {[%emt 0:00:14]} d4 {[%emt 0:01:50]} 39. Ke2 {[%emt 0:00:56]} d3+ {[%emt 0:00:06]} 40. Kd1 {[%emt 0:00:22]} d2 {[%emt 0:00:11]} 41. Bc4 {[%emt 0:00:51]} Na5 {[%emt 0:02:48]} 42. Be6 {[%emt 0:00:36]} Nc6 {[%emt 0:02:32]} 43. Rb7 {[%emt 0:00:27]} Nd4 {[%emt 0:01:40]} 44. Rxb6 {[%emt 0:00:28]} Nf3 {[%emt 0:01:38]} 45. h4 {[%emt 0:00:32]} Re8 {[%emt 0:01:55]} 46. Rd6 {[%emt 0:00:23]} Re7 {[%emt 0:00:28]} 47. Rc6 {[%emt 0:00:39]} Nd4 {[%emt 0:00:18]} 48. Rd6 {[%emt 0:00:12]} Nxe6 {[%emt 0:00:12]} 49. Kxd2 {[%emt 0:00:03]} f5 {[%emt 0:00:37]} 50. Ke2 {[%emt 0:00:31]} Ng5+ {[%emt 0:00:30]} 51. Kf1 {[%emt 0:00:24]} Ne4 {[%emt 0:00:02]} 52. Rd3 {[%emt 0:00:20]} Rc7 {[%emt 0:00:15]} 53. Kg2 {[%emt 0:01:23]} Rc2 {[%emt 0:00:06]} 54. Rf3 {[%emt 0:00:04]} Kh5 {[%emt 0:00:33]} 55. Rf4 {[%emt 0:00:20]} Rxf2+ {[%emt 0:00:48]} 56. Rxf2 {[%emt 0:00:08]} Nxf2 {[%emt 0:00:02]} 57. Kxf2 {[%emt 0:00:02]} Kg4 {[%emt 0:00:18]} 58. Kg2 {[%emt 0:00:30]} f4 {[%emt 0:00:32]} 59. gxf4 {[%emt 0:00:13]} Kxf4 {[%emt 0:00:02]} 60. Kh3 {[%emt 0:00:30]} h5 {[%emt 0:00:09] Kg4+} 0-1